Cogmind - Beta 12 X1 @@@ ROGUE MODE // 2022.07.18 @ 22:17:11 Player: Momo Result: Destroyed by D-53 Grenadier with Mini Grenade Launcher Performance ------------- Evolutions (1) 500 Regions Visited (4) 800 Robots Destroyed (27) 135 Value Destroyed (640) 640 Prototype IDs (0) 0 Alien Tech Used (0) 0 Bonus (0) 0 TOTAL SCORE: 2075 Bonus ------- None Cogmind --------- Core Integrity 0/400 Matter 95/300 Energy 75/100 System Corruption 5% Temperature Cool (0) Movement Core (1450) Ox28 Location -9/Mines Parts ------- > --- POWER (1) -------- (None) > --- PROPULSION (4) --- (None) > --- UTILITY (2) ------ Huge Storage Unit > --- WEAPON (2) ------- Beamcaster > --- INVENTORY (25) --- Light Treads Armored Treads Improved Heat Sink Grenade Launcher Rocket Launcher Plasma Flamer Scythe Heavy Explosive Trap Heavy Explosive Trap Heavy Explosive Trap Heavy Explosive Trap Heavy Explosive Trap Peak State ------------ > --- POWER ------------ Ion Engine > --- PROPULSION ------- Armored Treads Advanced Treads > --- UTILITY ---------- Improved Heat Sink Huge Storage Unit > --- WEAPON ----------- Flak Cannon Flak Cannon > --- INVENTORY -------- Beamcaster Rocket Launcher Scythe Heavy Explosive Trap Heavy Explosive Trap Heavy Explosive Trap Heavy Explosive Trap Heavy Explosive Trap [Rating: 18] Favorites ----------- Power Light Ion Engine Engine Light Ion Engine Propulsion Compact Wheel Treads Armored Treads Wheel Compact Wheel Utility Huge Storage Unit Device Improved Heat Sink Storage Huge Storage Unit Protection Light Armor Plating Weapon Flak Cannon Energy Gun Small Laser Ballistic Gun Light Assault Rifle Ballistic Cannon Flak Cannon Launcher Grenade Launcher Build | -11 -10 -10 -9 -9 ------- Run | Scr Mat Min Mat Min Slots Evolved 2 | . . . 2 . Power . | . . . . . Propulsion 2 | . . . 2 . Utility . | . . . . . Weapon . | . . . . . Parts Attached 20 | 5 . 3 9 3 Power 2 | . . . 2 . Engine 2 | . . . 2 . Core . | . . . . . Reactor . | . . . . . Propulsion 7 | 2 . . 5 . Treads 3 | . . . 3 . Leg . | . . . . . Wheel 4 | 2 . . 2 . Hover . | . . . . . Flight . | . . . . . Utility 5 | 1 . 1 2 1 Device 1 | . . . 1 . Storage 2 | 1 . 1 . . Processor . | . . . . . Hackware . | . . . . . Protection 2 | . . . 1 1 Artifact . | . . . . . Weapon 6 | 2 . 2 . 2 Energy Gun 2 | 1 . . . 1 Energy Cannon . | . . . . . Ballistic Gun 1 | 1 . . . . Ballistic Cannon 2 | . . 2 . . Launcher 1 | . . . . 1 Special Weapon . | . . . . . Impact Weapon . | . . . . . Slashing Weapon . | . . . . . Piercing Weapon . | . . . . . Special Melee Weapon . | . . . . . Unidentified Prototypes . | . . . . . Parts Lost 11 | . . . 4 7 Power 2 | . . . 1 1 Propulsion 4 | . . . 2 2 Utility 2 | . . . . 2 Weapon 3 | . . . 1 2 Highest Loss Streak 7 | . . . 2 7 To Critical Strikes . | . . . . . Average Slot Usage (%) 77 | . 71 70 71 97 Engine 5 | . . . 6 11 Treads 15 | . . . 22 22 Wheel 15 | . 28 28 6 20 Device 2 | . . . 5 . Storage 11 | . 14 14 11 11 Protection 4 | . . . 5 10 Energy Gun 2 | . 14 5 . . Ballistic Gun 2 | . 14 5 . . Ballistic Cannon 13 | . . 16 15 10 Launcher 2 | . . . . 11 Naked Turns . | . . . . . Heaviest Build 98 | 7 7 92 98 95 Greatest Support 62 | 32 32 32 62 40 Greatest Overweight (x) 3 | . . 2 3 3 Average Overweight (x) 1 | . . . 1 2 Largest Inventory Capacity 25 | 8 8 25 25 25 Average Capacity 20 | 7 8 10 25 25 Most Carried 13 | . 1 11 11 13 Average Carried 7 | . . 4 9 11 Final Capacity 25 | 8 8 25 25 25 Final Carried 12 | . 1 11 10 12 Class Distribution -------------------- 73% | Mutant 26% | Scavenger-Mutant Dominant Class ---------------- Mutant | -10/Materials Mutant | -10/Mines Mutant | -9/Materials Scavenger-Mutant | -9/Mines Resources | -11 -10 -10 -9 -9 ----------- Run | Scr Mat Min Mat Min Matter Collected 784 | 162 . 88 487 47 Remotely . | . . . . . Salvage Created 753 | . . 21 562 170 Parts 34 | . . . 29 5 Haulers Intercepted 1 | . . . 1 . Recyclers Shooed 4 | . . 1 3 . Parts Field Recycled . | . . . . . Retrieved Matter . | . . . . . Parts Self-Destructed . | . . . . . Prevented . | . . . . . Kills | -11 -10 -10 -9 -9 ------- Run | Scr Mat Min Mat Min Combat Hostiles Destroyed 37 | . . 1 16 20 Cannons 17 | . . 1 16 . AOE 20 | . . . . 20 Classes Destroyed 9 | . . 1 7 1 Builder 2 | . . . 1 1 Hauler 1 | . . . 1 . Recycler 3 | . . . 2 1 Watcher 1 | . . . 1 . Swarmer 6 | . . . 3 3 Grunt 10 | . . 1 9 . Brawler 1 | . . . 1 . Sentry 3 | . . . 3 . Assembled 17 | . . . . 17 Best Kill Streak 19 | . . 1 8 19 Combat Bots Only 17 | . . 1 8 17 Max Kills in Single Turn 4 | . . 1 2 4 Gunslinging . | . . . . . Exploded 4 | . . . . 4 Melee . | . . . . . Uniques/NPCs Destroyed . | . . . . . Combat | -11 -10 -10 -9 -9 -------- Run | Scr Mat Min Mat Min Damage Taken 1651 | . 25 21 829 776 Core 400 | . . . 156 244 Absorbed by Shields . | . . . . . Core Remaining (%) 100 | 100 . 100 . . Volleys Fired 68 | . . 4 47 17 Largest 2 | . . 2 2 1 Hottest 88 | . . 88 88 30 Shots Fired 96 | . . 8 71 17 Gun . | . . . . . Cannon 79 | . . 8 71 . Launcher 17 | . . . . 17 Special . | . . . . . Kinetic 79 | . . 8 71 . Thermal . | . . . . . Explosive 17 | . . . . 17 Electromagnetic . | . . . . . Robot Hit Streak 15 | . . 3 15 7 Robot Miss Streak 11 | . . 11 11 2 Penetration Max . | . . . . . Secondary Targets . | . . . . . Shots Hit Robots 83 | . . 6 64 13 Core Hits 115 | . . 5 66 44 Critical Kills . | . . . . . Critical Parts Destroyed . | . . . . . Critical Strikes . | . . . . . Melee Attacks . | . . . . . Impact . | . . . . . Slashing . | . . . . . Piercing . | . . . . . Sneak Attacks . | . . . . . Combat Hostiles . | . . . . . Follow-up Attacks . | . . . . . Damage Inflicted 2482 | . . 81 1068 1333 Guns . | . . . . . Cannons 1149 | . . 81 1068 . Explosions 1333 | . . . . 1333 Melee . | . . . . . Ramming . | . . . . . Kinetic 1149 | . . 81 1068 . Thermal . | . . . . . Explosive 1333 | . . . . 1333 Electromagnetic . | . . . . . Impact . | . . . . . Slashing . | . . . . . Piercing . | . . . . . Highest Corruption 5 | . . . . 5 Average Corruption 5 | . . . . 5 Corruption Purged . | . . . . . Corruption Blocked . | . . . . . Effects 1 | . . . . 1 Data Loss (major) 1 | . . . . 1 Overload Shots . | . . . . . Overflow Damage 12 | . . . . 12 Projectiles . | . . . . . Explosions 12 | . . . . 12 Melee . | . . . . . Knockbacks 28 | . . 3 25 . Impact . | . . . . . Kinetic 27 | . . 3 24 . Secondary 1 | . . . 1 . Self-Inflicted Damage 144 | . . . . 144 Shots 7 | . . . . 7 Rammed . | . . . . . Targets Rammed . | . . . . . Kicked . | . . . . . Crushed . | . . . . . Highest Temperature 60 | . . 60 43 . Average Temperature 16 | . . 31 10 . Received Heat Transfer 384 | . . 12 372 . Siege Activations . | . . . . . Robots Corrupted . | . . . . . Combat Hostiles . | . . . . . Parts Fried . | . . . . . Impact Corruptions . | . . . . . Robots Melted . | . . . . . Combat Hostiles . | . . . . . Parts Melted . | . . . . . Heat Transferred . | . . . . . Parts Sabotaged . | . . . . . Parts Stolen . | . . . . . Parts Stripped . | . . . . . Power Chain Reactions . | . . . . . Missiles Intercepted . | . . . . . Alert | -11 -10 -10 -9 -9 ------- Run | Scr Mat Min Mat Min Peak Influence 346 | . . 20 346 289 Initial 97 | . . . 7 97 Average 146 | . . 10 203 219 Maximum Alert Level 1 | . . . 1 1 Low Security (%) 51 | 100 100 100 44 1 Level 1 48 | . . . 55 98 Level 2 . | . . . . . Level 3 . | . . . . . Level 4 . | . . . . . Level 5 . | . . . . . High Security . | . . . . . Max Security . | . . . . . Squads Dispatched 2 | . . 1 1 . Investigation 1 | . . 1 . . Extermination . | . . . . . Reinforcement 1 | . . . 1 . Assault . | . . . . . Garrison . | . . . . . Intercept . | . . . . . Searches Triggered . | . . . . . Construction Impeded . | . . . . . Haulers Reinforced . | . . . . . Active Scanning Responses . | . . . . . Cargo Convoy Interrupts . | . . . . . Stealth | -11 -10 -10 -9 -9 --------- Run | Scr Mat Min Mat Min Distress Signals . | . . . . . Communications Jammed . | . . . . . Distress Signals . | . . . . . Times Spotted 53 | . 4 2 24 23 Peak Tracking Total 14 | . 5 2 7 14 Tactical Retreats 1 | . . . . 1 Traps | -11 -10 -10 -9 -9 ------- Run | Scr Mat Min Mat Min Traps Triggered . | . . . . . Indirectly . | . . . . . Trap Hack Attempts . | . . . . . Triggered . | . . . . . Disarmed . | . . . . . Reprogrammed . | . . . . . Reused . | . . . . . Traps Extracted . | . . . . . Installed . | . . . . . Triggered . | . . . . . Most Traps Carried 5 | . . 5 5 5 Machines | -11 -10 -10 -9 -9 ---------- Run | Scr Mat Min Mat Min Machines Disabled 1 | . . . . 1 Max in Single Turn 1 | . . . . 1 Machines Sabotaged . | . . . . . Garrisons Compromised . | . . . . . Overloaded Fab Kills . | . . . . . Hacking | -11 -10 -10 -9 -9 --------- Run | Scr Mat Min Mat Min Machines Accessed 2 | . . 1 1 . Terminals . | . . . . . Fabricators . | . . . . . Repair Stations . | . . . . . Recycling Units . | . . . . . Scanalyzers 1 | . . . 1 . Garrison Access . | . . . . . Total Hacks 3 | . . 1 2 . Successful 3 | . . 1 2 . Failed . | . . . . . Catastrophic . | . . . . . Database Lockouts . | . . . . . Manual . | . . . . . Terminals . | . . . . . Fabricators . | . . . . . Repair Stations . | . . . . . Recycling Units . | . . . . . Scanalyzers 2 | . . . 2 . Garrison Access . | . . . . . Terminal Hacks 1 | . . 1 . . Open Door 1 | . . 1 . . Fabricator Hacks . | . . . . . Repair Station Hacks . | . . . . . Recycling Unit Hacks . | . . . . . Scanalyzer 2 | . . . 2 . Insert Component 1 | . . . 1 . Analyze 1 | . . . 1 . Garrison Access Hacks . | . . . . . Unauthorized Hacks . | . . . . . Terminals . | . . . . . Fabricators . | . . . . . Repair Stations . | . . . . . Recycling Units . | . . . . . Scanalyzers . | . . . . . Garrison Access . | . . . . . Data Cores Recovered . | . . . . . Used . | . . . . . Hacking Detections . | . . . . . Full Trace Events . | . . . . . Feedback Events . | . . . . . Feedback Blocked . | . . . . . Robot Schematics Acquired . | . . . . . Robots Built . | . . . . . Authchips . | . . . . . Time . | . . . . . Total Robot Build Rating . | . . . . . Part Schematics Acquired 1 | . . . 1 . Parts Built . | . . . . . Authchips . | . . . . . Time . | . . . . . Total Part Build Rating . | . . . . . Parts Repaired . | . . . . . Time . | . . . . . Parts Recycled . | . . . . . Recycled Matter . | . . . . . Retrieved Matter . | . . . . . Retrieved Components . | . . . . . Parts Scanalyzed 1 | . . . 1 . Part Schematics Acquired 1 | . . . 1 . Parts Damaged . | . . . . . Bothacking | -11 -10 -10 -9 -9 ------------ Run | Scr Mat Min Mat Min Used RIF Installer . | . . . . . Robots Hacked . | . . . . . Non-combat . | . . . . . Combat . | . . . . . Robot Hacks Applied . | . . . . . Relay Couplers Released . | . . . . . Fabnet Peak Effective % . | . . . . . Robots Rewired . | . . . . . Allies Hacked . | . . . . . Hacks Repelled . | . . . . . Allies | -11 -10 -10 -9 -9 -------- Run | Scr Mat Min Mat Min Total Allies . | . . . . . Largest Group . | . . . . . Highest-Rated Group . | . . . . . Highest-Rated Ally . | . . . . . Total Orders . | . . . . . Ally Attacks . | . . . . . Total Damage . | . . . . . Kills . | . . . . . Allies Corrupted . | . . . . . Allies Melted . | . . . . . Intel | -11 -10 -10 -9 -9 ------- Run | Scr Mat Min Mat Min Robot Analysis Total . | . . . . . Derelict Logs Recovered 2 | . . 2 . . Drone Launches . | . . . . . Drone Recoveries . | . . . . . Exploration | -11 -10 -10 -9 -9 ------------- Run | Scr Mat Min Mat Min Turns Passed 1158 | 41 72 240 551 254 Spaces Moved 641 | 35 72 192 195 147 Core 3 | 3 . . . . Treads 109 | . . . 107 2 Legs . | . . . . . Wheels 529 | 32 72 192 88 145 Hover . | . . . . . Flight . | . . . . . Fastest Speed 50 | 50 100 100 130 135 Average Speed 139 | 95 100 103 200 137 Slowest Speed 325 | 100 100 130 317 325 Overloaded Moves . | . . . . . Propulsion Burnouts . | . . . . . Robots Hopped . | . . . . . Cave-ins Triggered . | . . . . . Exploration Rate (%) 29 | 3 24 40 31 48 Regions Visited 4 Branch Regions 2 Pre-discovered Areas . | . . . . . Known Exits Taken . | . . . . . Unknown Exits Taken 4 | 1 1 1 1 . Scrap Searched 2 | . . 1 . 1 Spaces Dug . | . . . . . Terrain Destroyed 61 | . . . . 61 Melee . | . . . . . Projectile . | . . . . . AOE 61 | . . . . 61 Terrain Rammed . | . . . . . Walls Destroyed . | . . . . . Machines Disabled . | . . . . . Actions | -11 -10 -10 -9 -9 --------- Run | Scr Mat Min Mat Min Total 802 | 39 72 226 282 183 Wait 54 | . . 14 29 11 Move 637 | 34 71 191 194 147 Hop . | . . . . . Pick Up 16 | . 1 11 1 3 Fast Attach 13 | 5 . 2 6 . Attach 7 | . . 1 3 3 Detach 3 | . . . 1 2 Swap . | . . . . . Drop 4 | . . 3 1 . Fire 68 | . . 4 47 17 Melee . | . . . . . Ram . | . . . . . Kick . | . . . . . Crush . | . . . . . Escape Stasis . | . . . . . Rewire . | . . . . . Trap . | . . . . . Miscellaneous . | . . . . . Route ------- -11/Scrapyard -10/Materials -10/Mines (discovered 2 exits: *Mat x2) -9/Materials -9/Mines History --------- Turn | Location | Event 11 | -11/Scrapyard | Discovered new exit (range 15) 42 | -11/Scrapyard | Entered Materials 102 | -10/Materials | Discovered new exit (range 13) 114 | -10/Materials | Entered Mines 151 | -10/Mines | Learned Materials garrison access intel 171 | -10/Mines | Discovered new exit (range 7) 200 | -10/Mines | Met a Derelict shopkeep closing up shop 284 | -10/Mines | Received a Rocket Launcher from a helpful Derelict 308 | -10/Mines | Build established: Mutant 312 | -10/Mines | Learned 2 Materials zone layouts 319 | -10/Mines | Found a hidden stash of uninstalled traps 345 | -10/Mines | Discovered new exit (range 7) 354 | -10/Mines | Entered Materials 354 | -9/Materials | Evolved 2 slots: Propulsion x2 492 | -9/Materials | Destroyed 8 combat bots 894 | -9/Materials | Discovered new exit (range 9) 905 | -9/Materials | Entered Mines 955 | -9/Mines | A weapon hastily lodged in a ceiling crevice suddenly fell to the ground 1024 | -9/Mines | YI-UF0 nonchalantly dropped a Grenade Launcher on the ground 1109 | -9/Mines | Assembled infested the area 1135 | -9/Mines | Build established: Scavenger-Mutant 1142 | -9/Mines | Core integrity fell below 50% 1158 | -9/Mines | Core integrity fell below 20% 1159 | -9/Mines | Destroyed by D-53 Grenadier with Mini Grenade Launcher Last Messages --------------- [Achievement: Exterminator] 01146_ System corrupted: Substantial component data lost. 01146_ Lgt. Armor Plating destroyed. 01146_ K-01 Serf collects debris. 01147_ as-23440 destroyed. 01147_ as-66143 destroyed. 01151_ K-01 Serf collects debris. 01154_ C-30 ARC bursts open, deploying its payload. 01154_ D-53 Grenadier unfolds itself. 01154_ Lgt. Ion Engine destroyed. 01155_ U-05 Engineer lays Concrete. 01155_ K-01 Serf collects debris. 01155_ T-07 Excavator destroyed. 01156_ U-05 Engineer lays Concrete. 01157_ The unstable cave ceiling collapses. 01157_ U-05 Engineer destroyed. 01157_ R-06 Scavenger collects Sml. Storage Unit. 01158_ The unstable cave ceiling collapses. 01159_ Grenade Launcher destroyed. [Achievement: Superachiever] Map ----- +----------------------------------------------------+ | ?????????????????????????????????????????????????? | | ?????????????????????????????????????????????????? | | ?????????????????????????????????????????????????? | | ?????????????????????????????????????????????????? | | ?????????????????????????????????????????????????? | | ?????????????????????????????????????????????????? | | ?????????????????????????????????????????????????? | | ?????????????????????????????????????????????????? | | ?????????????????????????????????????????????????? | | ???????????????????????#???????????#?????????????? | | ?????????????????????? #????????? #?????????????? | | ??????????????????????? ##?###### #?????????????? | | ??????????????????????? #|%= ?????????????? | | ??????????????????????? !*%% ???????????????? | | ??????????????????????? ##??????????????? | | ?????????????????????### # #??????????????? | | ?????????????????????# % #??????????????? | | ?????????????????????# #??????????????? | | ?????????????????##### #?#????????????? | | ???????########### # ##???????????? | | ??????## % ##??????????? | | ??????# r # ## ????????? | | ??????# ???????? | | ??????# ## ???????? | | ??????# ??## #??### ????????? | | ??????## ?????# @ #?????????????????? | | ???????##??????## ##?????????????????? | | ????????????????##### dd #??????????????????? | | ????????????????????# % ##??????????????????? | | ????????????????????# %= ##???????????????????? | | ????????????????????### ## ##????????????????????? | | ????????????????####### #?##?????????????????????? | | ?????????######## #????????????????????????? | | ?? #######????????????????????????? | | ????????######### #??????#####???????????????????? | | ????????????????# #????## ##??????????????????? | | ????????????????# #???## ##?????????????????? | | ????????????????# #??## #?????????????????? | | ????????????????# #??# #?????????????????? | | ????????????????# #??# ## ##?????????????????? | | ????????###?????# #??# ##??????????????????????? | | ???????## ##????# #?## ##???????#??????????????? | | ??????## #?#### ### ###### ##?????????????? | | ?????## #?# ##????????????? | | ?????# #?# #????????????? | | ??????# #?# #### #????????? | | ??????## #?# #??## ####????????? | | ???????## #?# #???#### #???????????? | | ???????## ### ##?????### #???????????? | | ??????## ## ##??????## #???????????? | +----------------------------------------------------+ Best States ------------- Heat Dissipation 42 Energy Generation 10 Energy Capacity 250 Matter Stores 232 Matter Capacity 300 Sight Range 16 Terrain Scan Density 10 Armor Coverage 150 Evasion (%) 40 Recoil Reduction 3 Item Schematics ----------------- Rocket Launcher | -9/Materials | Scanalyzed Robot Schematics ------------------ None Fabricated ------------ Nothing Alien Tech Used ----------------- None Achievements -------------- Exterminator Superachiever Challenges ------------ None Game ------ Seed TerrabombHellfireSlayer Manual? 1 Play Time 00:10:35 Cumulative 284.1 hours Start 2022.07.18 @ 17:40:29 End 2022.07.18 @ 22:17:11 Sessions 1 Manual Loads 0 Difficulty Rogue Special Mode None Game No. 142 Rogue 138 Adventurer 0 Explorer 4 Win Type - Total 16 Types 4/0/2/4/1/2/3/0/0 Lore% 77 Gallery% 82 Achievement% 75 Wizard Run 0 Options --------- ASCII 0 Keyboard 0 Movement Mouse Keybinds 0 Fullscreen 1 Font 18/SmallcapsGlow Map View 76x50 Tactical HUD 1 Map Filters NONE Filters NONE Steam 1 RUN: fce22eda-0adf-48d6-91d2-94eed82b9b39